Cogmind - Beta 13 --- EXPLORER MODE // 2024.04.08 @ 16:04:23 Player: Luna Result: Core destroyed Performance ------------- Evolutions (4) 2000 Regions Visited (5) 1000 Robots Destroyed (166) 830 Value Destroyed (5760) 5760 Prototype IDs (7) 140 Alien Tech Used (0) 0 Bonus (159) 159 TOTAL SCORE: 9889 Bonus ------- High Alert Combat Kills 338 Friendly Fire -179 Cogmind --------- Core Integrity 0/850 Matter 216/300 Energy 820/905 System Corruption 17% Temperature Critical (530) Movement Hovering (230) Ox3 Location -6/Factory Parts ------- > --- POWER (3) -------- Improved Deuterium Engine Micro Nuclear Core Neutrino Core > --- PROPULSION (4) --- Carbon-fiber Leg Carbon-fiber Leg Gravmag Array > --- UTILITY (5) ------ Advanced Heat Sink Advanced Heat Sink Medium Storage Unit Energy Well Improved Core Shielding > --- WEAPON (4) ------- Heavy Laser Compact Ion Cannon Magnetic Acceleration Cannon Bore Cannon > --- INVENTORY (10) --- Carbon-fiber Leg Improved Heat Sink Structural Scanner Improved Sensor Array Improved Propulsion Shielding Focal Shield Improved Hacking Suite High-powered Tractor Beam Gatling Laser Gatling Laser Peak State ------------ > --- POWER ------------ Improved Deuterium Engine Micro Nuclear Core Neutrino Core > --- PROPULSION ------- Carbon-fiber Leg Carbon-fiber Leg Gravmag Array > --- UTILITY ---------- Advanced Heat Sink Advanced Heat Sink Medium Storage Unit Energy Well Improved Core Shielding > --- WEAPON ----------- Heavy Laser Compact Ion Cannon Magnetic Acceleration Cannon Bore Cannon > --- INVENTORY -------- Carbon-fiber Leg Improved Heat Sink Structural Scanner Improved Sensor Array Focal Shield Focal Shield High-powered Tractor Beam Gatling Laser Gatling Laser [Rating: 74] Favorites ----------- Power Improved Ion Engine Engine Improved Ion Engine Power Core Neutrino Core Reactor Light Antimatter Reactor Propulsion Carbon-fiber Leg Treads Light Treads Leg Carbon-fiber Leg Wheel Wheel Hover Unit Hover Unit Flight Unit VTOL Module Utility Large Matter Pod Device Advanced Heat Sink Storage Large Matter Pod Processor Targeting Computer Hackware Hacking Suite Protection Layered Medium Armor Plating Weapon Compact Ion Cannon Energy Gun Advanced Beam Rifle Energy Cannon Compact Ion Cannon Ballistic Gun Gauss Rifle Ballistic Cannon Magnetic Acceleration Cannon Launcher Rocket Array Special Weapon Remote Datajack Impact Weapon Great Maul Build | -11 -10 -9 -8 -7 -6 ------- Run | Yrd Mat Mat Mat Fac Fac Slots Evolved 9 | . 1 2 2 2 2 Power 2 | . 1 . . . 1 Propulsion 2 | . . . . 1 1 Utility 3 | . . 1 2 . . Weapon 2 | . . 1 . 1 . Parts Attached 154 | 11 12 14 44 5 68 Power 24 | 1 2 2 6 1 12 Engine 16 | 1 2 2 4 1 6 Core 7 | . . . 2 . 5 Reactor 1 | . . . . . 1 Propulsion 33 | 3 2 2 12 1 13 Treads 6 | . . . 2 1 3 Leg 9 | 1 2 . . . 6 Wheel 4 | 2 . . . . 2 Hover 8 | . . 2 5 . 1 Flight 6 | . . . 5 . 1 Utility 47 | 3 2 5 17 1 19 Device 25 | 1 . 2 10 1 11 Storage 5 | . . 1 1 . 3 Processor 6 | 1 . . 5 . . Hackware 2 | . . 2 . . . Protection 9 | 1 2 . 1 . 5 Artifact . | . . . . . . Weapon 50 | 4 6 5 9 2 24 Energy Gun 17 | . 3 2 6 . 6 Energy Cannon 8 | . . 1 . . 7 Ballistic Gun 13 | 4 2 . 2 1 4 Ballistic Cannon 4 | . . . . . 4 Launcher 4 | . 1 2 . 1 . Special Weapon 2 | . . . . . 2 Impact Weapon 2 | . . . 1 . 1 Slashing Weapon . | . . . . . . Piercing Weapon . | . . . . . . Special Melee Weapon . | . . . . . . Unidentified Prototypes 6 | . . 1 1 1 3 Corrupted Parts 1 | . . . . . 1 System Corruption 1 | . . . . . 1 Parts Lost 37 | . 1 . 16 . 20 Power 9 | . . . 3 . 6 Propulsion 9 | . 1 . 4 . 4 Utility 12 | . . . 6 . 6 Weapon 7 | . . . 3 . 4 Highest Loss Streak 10 | . 1 . 9 . 10 To Critical Strikes . | . . . . . . Average Slot Usage (%) 90 | . 82 92 90 97 89 Engine 11 | . 16 18 11 14 7 Core 3 | . . . 3 . 6 Treads 6 | . . . 1 21 9 Leg 7 | . 14 16 . . 8 Wheel 1 | . 8 . . . 1 Hover 2 | . . 2 8 . . Flight 1 | . . . 3 . 1 Device 12 | . 1 5 13 13 16 Storage 7 | . . 8 8 7 8 Processor 6 | . 12 6 9 14 2 Hackware 1 | . . 5 4 . . Protection 1 | . 4 1 1 . 1 Energy Gun 8 | . 13 13 11 7 4 Energy Cannon 2 | . . 1 . . 4 Ballistic Gun 4 | . 7 . 3 9 4 Ballistic Cannon 2 | . . . . . 5 Launcher 4 | . 3 10 5 4 2 Naked Turns . | . . . . . . Heaviest Build 74 | 7 13 30 36 41 74 Greatest Support 114 | 20 20 20 40 60 114 Greatest Overweight (x) 12 | . 1 8 8 . 12 Average Overweight (x) . | . . . 1 . 1 Largest Inventory Capacity 25 | 5 5 5 25 5 10 Average Capacity 6 | 5 5 5 5 5 7 Most Carried 10 | 5 5 5 5 5 10 Average Carried 4 | 3 4 4 3 4 5 Final Capacity 10 | 5 5 5 5 5 10 Final Carried 10 | 4 4 5 5 5 10 Class Distribution -------------------- 29% | Hacker-Gunner 21% | Scavenger-Gunner 16% | Hacker-Mutant 11% | Scavenger-Mutant 9% | Hacker-Tank 9% | Scavenger-Tank Dominant Class ---------------- Hacker-Mutant | -10/Materials Hacker-Gunner | -9/Materials Hacker-Gunner | -8/Materials Scavenger-Gunner | -7/Factory Scavenger-Gunner | -6/Factory Resources | -11 -10 -9 -8 -7 -6 ----------- Run | Yrd Mat Mat Mat Fac Fac Matter Collected 4539 | 280 272 166 1092 144 2585 Remotely 115 | . . . . . 115 Salvage Created 6006 | 39 479 240 1275 276 3697 Parts 275 | 3 34 9 50 13 166 Haulers Intercepted 3 | . . . 1 . 2 Recyclers Shooed 2 | . . . . . 2 Parts Field Recycled . | . . . . . . Retrieved Matter . | . . . . . . Parts Self-Destructed . | . . . . . . Prevented . | . . . . . . Kills | -11 -10 -9 -8 -7 -6 ------- Run | Yrd Mat Mat Mat Fac Fac Combat Hostiles Destroyed 119 | 1 13 6 30 8 61 Guns 46 | 1 13 1 24 2 5 Cannons 32 | . . . . . 32 AOE 41 | . . 5 6 6 24 Classes Destroyed 18 | 1 1 2 8 1 5 Worker 12 | . . . 1 . 11 Builder 14 | . . . 1 2 11 Tunneler 3 | . . . 1 . 2 Hauler 3 | . . . 1 . 2 Recycler 14 | . . . 3 . 11 Mechanic 1 | . . . . 1 . Operator 2 | . . 1 . . 1 Watcher 5 | . . . 2 . 3 Swarmer 14 | . 2 . 3 . 9 Saboteur 1 | . . . . . 1 Grunt 66 | 1 11 4 16 5 29 Brawler 4 | . . . 1 . 3 Duelist 1 | . . . . . 1 Sentry 18 | . . 2 8 2 6 Hunter 8 | . . . 2 1 5 Programmer 5 | . . . . . 5 Heavy 1 | . . . . . 1 Behemoth 1 | . . . . . 1 Best Kill Streak 28 | 1 5 2 6 8 28 Combat Bots Only 7 | 1 5 2 6 5 7 Max Kills in Single Turn 5 | 1 2 2 2 3 5 Gunslinging 1 | . 1 . 1 . . Exploded 5 | . . 2 1 2 5 Melee . | . . . . . . Uniques/NPCs Destroyed . | . . . . . . Combat | -11 -10 -9 -8 -7 -6 -------- Run | Yrd Mat Mat Mat Fac Fac Hostile Shots Fired 677 | 6 66 19 169 103 314 Missed 192 | 2 20 6 37 34 93 Damage Taken 5968 | 28 332 118 1521 357 3612 Core 1513 | 14 73 30 485 43 868 Absorbed by Shields 275 | . . . . 141 134 Redirected to Shielding 62 | . 4 . . . 58 Ignored by Resistances 3223 | 17 213 74 840 325 1754 Regen/Repaired (Parts) 45 | . 13 . . . 32 Core Remaining (%) 71 | 94 65 92 11 93 . Volleys Fired 292 | 4 39 18 93 11 127 Largest 4 | 2 2 3 3 4 4 Hottest 290 | 40 80 152 189 154 290 Shots Fired 703 | 8 78 39 189 37 352 Gun 409 | 8 78 28 159 30 106 Cannon 223 | . . 1 . . 222 Launcher 69 | . . 10 30 7 22 Special 2 | . . . . . 2 Kinetic 305 | 8 37 . 58 19 183 Thermal 318 | . 41 29 101 11 136 Explosive 69 | . . 10 30 7 22 Electromagnetic 9 | . . . . . 9 Robot Hit Streak 37 | 7 37 22 35 27 27 Robot Miss Streak 10 | . 2 . 2 1 10 Penetration Max 2 | . . . . . 2 Secondary Targets 6 | . 4 . 2 . . Max Gunslinging Chain 1 | . 1 . 1 . . Shots Hit Robots 502 | 7 65 16 140 33 241 Core Hits 447 | 2 27 12 111 28 267 Critical Kills 9 | . . . 1 . 8 Critical Parts Destroyed 13 | . . . 2 . 11 Critical Strikes 36 | . . 2 6 2 26 Burn 7 | . . 2 3 2 . Destroy 24 | . . . 3 . 21 Blast 5 | . . . . . 5 Melee Attacks . | . . . . . . Impact . | . . . . . . Slashing . | . . . . . . Piercing . | . . . . . . Sneak Attacks . | . . . . . . Combat Hostiles . | . . . . . . Follow-up Attacks . | . . . . . . Damage Inflicted 18719 | 83 793 445 3709 1535 12154 Guns 4984 | 83 793 215 2188 451 1254 Cannons 4696 | . . . . . 4696 Explosions 9039 | . . 230 1521 1084 6204 Melee . | . . . . . . Ramming . | . . . . . . Kinetic 4982 | 83 390 . 954 270 3285 Thermal 4891 | . 403 215 1291 181 2801 Explosive 8664 | . . 230 1430 1032 5972 Electromagnetic 182 | . . . 34 52 96 Impact . | . . . . . . Slashing . | . . . . . . Piercing . | . . . . . . Highest Corruption 17 | . 1 1 . . 17 Average Corruption 11 | . 1 1 . . 13 Corruption Purged . | . . . . . . Corruption Blocked . | . . . . . . Effects 94 | . . 2 . . 92 Message Errors 24 | . . . . . 24 Matter Fused 15 | . . 1 . . 14 Heat Flow Errors 14 | . . . . . 14 Energy Discharges 10 | . . . . . 10 Parts Rejected 2 | . . . . . 2 Data Loss (minor) 9 | . . . . . 9 Data Loss (major) 4 | . . 1 . . 3 Misfires 5 | . . . . . 5 Alerts 2 | . . . . . 2 Weapon Failures 9 | . . . . . 9 Overload Shots . | . . . . . . Overflow Damage 329 | . . . 49 32 248 Projectiles 127 | . . . . . 127 Explosions 202 | . . . 49 32 121 Melee . | . . . . . . Knockbacks 12 | . . . . . 12 Impact . | . . . . . . Kinetic 11 | . . . . . 11 Secondary 1 | . . . . . 1 Self-Inflicted Damage 674 | . . 16 157 108 393 Shots 36 | . . 1 5 8 22 Rammed . | . . . . . . Targets Rammed . | . . . . . . Kicked . | . . . . . . Crushed . | . . . . . . Highest Temperature 842 | 6 114 538 644 492 842 Average Temperature 197 | 6 42 159 219 182 218 Received Heat Transfer 2376 | 24 246 81 1062 186 777 Effects 158 | . . 9 66 6 77 Shutdowns 47 | . . 3 16 3 25 Energy Bleed 17 | . . . 5 . 12 Interference 10 | . . . 3 . 7 Matter Decay 17 | . . . 6 1 10 Short Circuit 12 | . . 2 3 2 5 Damage (minor) 14 | . . . 8 . 6 Damage (major) 35 | . . 4 23 . 8 Damage (core) 6 | . . . 2 . 4 Siege Activations . | . . . . . . Robots Corrupted . | . . . . . . Combat Hostiles . | . . . . . . Parts Fried . | . . . . . . Impact Corruptions . | . . . . . . Robots Melted . | . . . . . . Combat Hostiles . | . . . . . . Parts Melted 13 | . . 2 5 . 6 Heat Transferred 8474 | . 900 569 2553 555 3897 Parts Sabotaged . | . . . . . . Parts Stolen . | . . . . . . Parts Stripped . | . . . . . . Power Chain Reactions . | . . . . . . Alert | -11 -10 -9 -8 -7 -6 ------- Run | Yrd Mat Mat Mat Fac Fac Peak Influence 660 | 20 360 202 402 487 660 Initial 68 | . 9 18 61 68 67 Average 217 | 9 158 70 203 135 306 Maximum Alert Level 2 | . 1 1 2 2 2 Low Security (%) 51 | 100 64 95 46 89 29 Level 1 28 | . 35 4 42 7 30 Level 2 20 | . . . 11 2 39 Level 3 . | . . . . . . Level 4 . | . . . . . . Level 5 . | . . . . . . High Security . | . . . . . . Max Security . | . . . . . . Squads Dispatched 36 | . 3 1 9 3 20 Investigation 15 | . 3 1 5 2 4 Extermination 4 | . . . . . 4 Reinforcement 10 | . . . 1 1 8 Assault 2 | . . . . . 2 Garrison 5 | . . . 3 . 2 Intercept . | . . . . . . Searches Triggered . | . . . . . . Construction Impeded 3 | . . . . . 3 Haulers Reinforced 3 | . . . . . 3 Active Scanning Responses . | . . . . . . Cargo Convoy Interrupts 1 | . . . . . 1 Stealth | -11 -10 -9 -8 -7 -6 --------- Run | Yrd Mat Mat Mat Fac Fac Distress Signals 4 | . 1 . . . 3 Communications Jammed . | . . . . . . Distress Signals . | . . . . . . Times Spotted 149 | 1 18 7 32 10 81 Peak Tracking Total 7 | 1 4 2 4 5 7 Tactical Retreats 3 | . . . 1 . 2 Traps | -11 -10 -9 -8 -7 -6 ------- Run | Yrd Mat Mat Mat Fac Fac Traps Triggered 6 | . 3 . 2 . 1 Indirectly 1 | . . . 1 . . Trap Hack Attempts . | . . . . . . Triggered . | . . . . . . Disarmed 2 | . 2 . . . . Reprogrammed 3 | . . . 3 . . Reused . | . . . . . . Traps Extracted . | . . . . . . Installed . | . . . . . . Triggered . | . . . . . . Machines | -11 -10 -9 -8 -7 -6 ---------- Run | Yrd Mat Mat Mat Fac Fac Machines Disabled 27 | . . . 11 1 15 Max in Single Turn 4 | . . . 3 1 4 Garrison Access 1 | . . . . . 1 Machines Repaired . | . . . . . . Machines Dismantled . | . . . . . . Machines Sabotaged . | . . . . . . Overloaded Fab Kills . | . . . . . . Hacking | -11 -10 -9 -8 -7 -6 --------- Run | Yrd Mat Mat Mat Fac Fac Machines Accessed 26 | . 6 4 6 2 8 Terminals 15 | . 4 2 2 2 5 Fabricators . | . . . . . . Repair Stations 2 | . 1 . . . 1 Recycling Units 5 | . 1 1 2 . 1 Scanalyzers 4 | . . 1 2 . 1 Garrison Access . | . . . . . . Total Hacks 111 | . 24 15 36 10 26 Successful 80 | . 16 15 34 4 11 Failed 31 | . 8 . 2 6 15 Catastrophic 4 | . . . . 1 3 Database Lockouts . | . . . . . . Manual . | . . . . . . Terminals 55 | . 16 8 11 10 10 Fabricators . | . . . . . . Repair Stations 11 | . 3 . . . 8 Recycling Units 19 | . 5 3 7 . 4 Scanalyzers 26 | . . 4 18 . 4 Garrison Access . | . . . . . . Terminal Hacks 37 | . 11 8 10 4 4 Record 16 | . 6 3 4 2 1 Part Schematic 2 | . . . . 2 . Open DSF 3 | . . . . . 3 Level Access Points 1 | . . 1 . . . Emergency Access Points 1 | . . 1 . . . Alert Level 4 | . 2 . 2 . . Locate Traps 1 | . . 1 . . . Disarm Traps 1 | . 1 . . . . Reprogram Traps 1 | . . . 1 . . Dispatch Records 3 | . 1 1 1 . . Maintenance Status 1 | . 1 . . . . Surveillance Status 1 | . . . 1 . . Zone Layout 2 | . . 1 1 . . Fabricator Hacks . | . . . . . . Repair Station Hacks 8 | . 3 . . . 5 Scan Component 5 | . 2 . . . 3 Repair 3 | . 1 . . . 2 Recycling Unit Hacks 12 | . 2 3 6 . 1 Recycle Component 2 | . . . 2 . . Process 1 | . . . 1 . . Report Inventory 4 | . 2 1 1 . . Retrieve Matter 3 | . . 1 2 . . Retrieve Components 2 | . . 1 . . 1 Scanalyzer 23 | . . 4 18 . 1 Insert Component 13 | . . 2 10 . 1 Analyze 10 | . . 2 8 . . Garrison Access Hacks . | . . . . . . Unauthorized Hacks . | . . . . . . Terminals . | . . . . . . Fabricators . | . . . . . . Repair Stations . | . . . . . . Recycling Units . | . . . . . . Scanalyzers . | . . . . . . Garrison Access . | . . . . . . Data Cores Recovered 1 | . . 1 . . . Used 1 | . . 1 . . . Hacking Detections 23 | . 6 4 6 2 5 Full Trace Events 18 | . 4 3 6 2 3 Feedback Events 2 | . . 1 . . 1 Corruption 2 | . . 1 . . 1 Feedback Blocked . | . . . . . . Robot Schematics Acquired . | . . . . . . Robots Built . | . . . . . . Authchips . | . . . . . . Time . | . . . . . . Total Robot Build Rating . | . . . . . . Part Schematics Acquired 12 | . . 2 8 2 . Parts Built . | . . . . . . Authchips . | . . . . . . Time . | . . . . . . Total Part Build Rating . | . . . . . . Parts Repaired 3 | . 1 . . . 2 Time 64 | . 26 . . . 38 Parts Recycled 2 | . . . 2 . . Recycled Matter 53 | . . . 53 . . Retrieved Matter 85 | . . 32 53 . . Retrieved Components 19 | . . 9 . . 10 Parts Scanalyzed 11 | . . 2 8 . 1 Part Schematics Acquired 10 | . . 2 8 . . Parts Damaged 1 | . . . 1 . . Bothacking | -11 -10 -9 -8 -7 -6 ------------ Run | Yrd Mat Mat Mat Fac Fac Used RIF Installer . | . . . . . . Robots Hacked 1 | . . . . . 1 Non-combat 1 | . . . . . 1 Combat . | . . . . . . Robot Hacks Applied 2 | . . . . . 2 parse_system 1 | . . . . . 1 no_distress 1 | . . . . . 1 Relay Couplers Released 3 | . . . . . 3 Machine Destruction 3 | . . . . . 3 Fabnet Peak Effective % . | . . . . . . Robots Rewired . | . . . . . . Allies Hacked . | . . . . . . Hacks Repelled . | . . . . . . Allies | -11 -10 -9 -8 -7 -6 -------- Run | Yrd Mat Mat Mat Fac Fac Total Allies . | . . . . . . Largest Group . | . . . . . . Highest-Rated Group . | . . . . . . Highest-Rated Ally . | . . . . . . Total Orders . | . . . . . . Ally Attacks . | . . . . . . Total Damage . | . . . . . . Kills . | . . . . . . Allies Corrupted . | . . . . . . Allies Melted . | . . . . . . Intel | -11 -10 -9 -8 -7 -6 ------- Run | Yrd Mat Mat Mat Fac Fac Robot Analysis Total . | . . . . . . Derelict Logs Recovered . | . . . . . . Drone Launches . | . . . . . . Drone Recoveries . | . . . . . . Exploration | -11 -10 -9 -8 -7 -6 ------------- Run | Yrd Mat Mat Mat Fac Fac Turns Passed 5975 | 162 526 759 1474 448 2606 Spaces Moved 3018 | 118 363 363 761 246 1167 Core 51 | 16 . 1 34 . . Treads 821 | . . . 77 246 498 Legs 873 | . 209 318 . . 346 Wheels 464 | 102 154 . . . 208 Hover 663 | . . 44 507 . 112 Flight 146 | . . . 143 . 3 Fastest Speed 50 | 50 80 116 100 160 110 Average Speed 153 | 75 104 177 146 160 171 Slowest Speed 1025 | 80 120 450 450 160 1025 Overloaded Moves . | . . . . . . Propulsion Burnouts . | . . . . . . Robots Hopped . | . . . . . . Cave-ins Triggered 1 | . . . . . 1 Exploration Rate (%) 29 | 7 67 27 40 5 31 Regions Visited 5 Branch Regions . Pre-discovered Areas . | . . . . . . Known Exits Taken 5 | 1 1 1 1 1 . Unknown Exits Taken . | . . . . . . Scrap Searched . | . . . . . . Spaces Dug . | . . . . . . Terrain Destroyed 749 | . . 47 210 177 315 Melee . | . . . . . . Projectile 32 | . . . . 1 31 AOE 717 | . . 47 210 176 284 Terrain Rammed . | . . . . . . Walls Destroyed . | . . . . . . Machines Disabled . | . . . . . . Actions | -11 -10 -9 -8 -7 -6 --------- Run | Yrd Mat Mat Mat Fac Fac Total 3858 | 184 437 458 997 275 1507 Wait 83 | 34 3 19 15 1 11 Move 3013 | 117 362 362 760 245 1167 Hop . | . . . . . . Pick Up 184 | 13 11 24 50 7 79 Fast Attach . | . . . . . . Attach 142 | 10 10 14 43 5 60 Detach 20 | 3 1 1 7 1 7 Swap 12 | 1 2 . 1 . 8 Drop 112 | 2 9 20 28 5 48 Fire 292 | 4 39 18 93 11 127 Melee . | . . . . . . Ram . | . . . . . . Kick . | . . . . . . Crush . | . . . . . . Escape Stasis . | . . . . . . Rewire . | . . . . . . Trap . | . . . . . . Miscellaneous . | . . . . . . Route ------- -11/Scrapyard -10/Materials (discovered 2 exits: *Mat / *Min) -9/Materials (discovered 3 exits: *Mat x3) -8/Materials (discovered 2 exits: *Fac / *Sto) -7/Factory -6/Factory (discovered 1 exit: *Low) History --------- Turn | Location | Event 2 | -11/Scrapyard | Met Revision 17 76 | -11/Scrapyard | Identified exit to Materials 76 | -11/Scrapyard | Discovered exit to Materials (range 8) 163 | -11/Scrapyard | Entered Materials 163 | -10/Materials | Evolved 1 slot: Power x1 333 | -10/Materials | Repaired Wheel? 333 | -10/Materials | Build established: Hacker-Mutant 349 | -10/Materials | Identified exit to Mines 349 | -10/Materials | Discovered exit to Mines (range 16) 579 | -10/Materials | Identified exit to Materials 579 | -10/Materials | Discovered exit to Materials (range 13) 689 | -10/Materials | Entered another Materials area 689 | -9/Materials | Evolved 2 slots: Utility x1, Weapon x1 1244 | -9/Materials | Identified exit to Materials 1244 | -9/Materials | Discovered exit to Materials (range 16) 1280 | -9/Materials | Build established: Hacker-Gunner 1448 | -9/Materials | Entered another Materials area 1448 | -8/Materials | Evolved 2 slots: Utility x2 2038 | -8/Materials | Lost 3 parts (1p1n1u) 2239 | -8/Materials | Garrison activated, responded to threat 2451 | -8/Materials | Identified exit to Factory 2451 | -8/Materials | Discovered exit to Factory (range 15) 2635 | -8/Materials | Core integrity fell below 50% 2718 | -8/Materials | Lost 9 parts (1p2n3u3w) 2748 | -8/Materials | Core integrity fell below 20% 2789 | -8/Materials | Identified exit to Storage 2789 | -8/Materials | Discovered exit to Storage (range 12) 2922 | -8/Materials | Entered Factory 2922 | -7/Factory | Evolved 2 slots: Propulsion x1, Weapon x1 3038 | -7/Factory | Build established: Scavenger-Mutant 3078 | -7/Factory | Found Prototype Launcher 3079 | -7/Factory | Identified Rocket Array 3311 | -7/Factory | Identified exit to Factory 3311 | -7/Factory | Discovered exit to Factory (range 16) 3370 | -7/Factory | Entered another Factory area 3370 | -6/Factory | Evolved 2 slots: Power x1, Propulsion x1 3456 | -6/Factory | Build established: Scavenger-Gunner 3928 | -6/Factory | Build established: Hacker-Gunner 4157 | -6/Factory | Garrison activated, responded to threat 4217 | -6/Factory | Identified exit to Lower Caves 4217 | -6/Factory | Discovered exit to Lower Caves (range 15) 4221 | -6/Factory | Destroyed 7 combat bots 4254 | -6/Factory | Spotted B-75 Beast 4259 | -6/Factory | Cargo convoy interrupted 4264 | -6/Factory | Crushed by falling debris 4264 | -6/Factory | System corruption reached 10% 4298 | -6/Factory | Destroyed B-75 Beast 4328 | -6/Factory | Lost 10 parts (3p1n3u3w) 4337 | -6/Factory | Core integrity fell below 50% 4427 | -6/Factory | Lost 3 parts (1n2u) 4770 | -6/Factory | First assault squad dispatched 5044 | -6/Factory | Build established: Scavenger-Gunner 5214 | -6/Factory | Repaired Hvy. Assault Cannon 5233 | -6/Factory | Repaired Lgt. Deuterium Engine 5835 | -6/Factory | Core integrity fell below 20% 5977 | -6/Factory | Core destroyed Last Messages --------------- 05970_ Power failure, Imp. Deuterium Engine shutdown. 05970_ Power failure, Neutrino Core shutdown. 05970_ ALERT: Rogue bot located, Programmers report to Factory Zone 6K. 05971_ K-01 Serf collects debris. 05972_ H-66 Slayer suffers critical hit (Destroy). 05972_ Destroyed Hvy. Assault Rifle. 05974_ Penetrated by Slug. 05975_ Overheating: Energy bleed (-88). 05975_ K-01 Serf collects debris. 05975_ Destroyed Unknown Device. 05975_ HV Slug penetrates H-66 Slayer. 05977_ Power failure, Mic. Nuclear Core shutdown. 05977_ Power failure, Neutrino Core shutdown. 05977_ Overheating: Core damaged (-161). [Achievement: First Step to Greatness] [Achievement: 5k Club] Map ----- +----------------------------------------------------+ | ?????????????????????????????????????????????????? | | ?????????????????????????????????????????????????? | | ?????????????????????????????????????"???????????? | | ???????????????????????????????????? "???????????? | | ???????????????????????????????????? """?????????? | | ???????????????????????##########??? """?????????? | | ???????????????????????# #??? "??????????? | | ???????????????????????# #??? ???????????? | | ???????????????????????#""" ####"####+####???? | | ???????????????????????#""" # ^ ^ #???? | | ???????????????????????#""" # #???? | | ???????????????????????# # +???? | | ???????????????????????#""" =# %""""""" #???? | | ???????????????????????#""" ; """"""" #???? | | ???????????????????????#""" ; % """"""" #???? | | ???????????????????????# ; "" """" #???? | | ???????????????????????#""" # % #???? | | ???????????????????????#""" # #???? | | ???????????????????????#""" +% #???? | | ???????????????????????# k# #???? | | ???????????????????????#""" + #? ?? | | ???????????????????????#""" # ###" #? ?? | | ???????????????????????#""" # #?## ## #? | | ???????????????????????# + #??# T# #? | | ???????????????# #####R########+#??# # #? | | ?????????? k @ #??????????# ## #? | | ?????????? #??????????# #? #? | | ?????????? h ^ #??????????# ##"## | | ??????????? % [% ^""" #??????????# # | | ???????????;;#### """ #?########## # | | ????????????????#"T """ #?# # # | | ????????????????#"" #?? # # | | ????????????????# #???"""""" # # | | ????????????????# #???"""""" + + | | ????????????????# #???# #?? """""" # " = | | ????????????????# ????? #?# """""" # # | | ????????????????#???????? #?# # ##+## | | ????????????????????????? #?# # | | ????????????????????????? #?# ! # | | ????????????????????????? #?########## | | ???????????????????????????????????????# | | ???????????????????????????????????????# | | ????????????????????????????###############+### [ | | ????????????????????????????# # | | ????????????????????????????# """"""""" # | | ????????????????????????????# # | | ????????????????????????????# """"""""" # | | ????????????????????????????# # | | ????????????????????????????# """"T"""" ! # | | ????????????????????????????# """"""""""" = # | +----------------------------------------------------+ Best States ------------- Heat Dissipation 75 Energy Generation 44 Energy Capacity 1300 Matter Stores 360 Matter Capacity 450 Sight Range 16 Robot Scan Range 15 Terrain Scan Range 16 Terrain Scan Density 10 Additional Mass Support 12 Armor Coverage 450 Resistance: KI 55 Resistance: TH 35 Resistance: EX 35 Resistance: EM 35 Resistance: I 35 Resistance: S 35 Resistance: P 35 Core Shielding 30 Propulsion Shielding 33 Evasion (%) 55 Targeting Accuracy 12 Target Analysis 5 Recoil Reduction 4 Particle Charging 15 Offensive Hacking 40 Item Schematics ----------------- Sensor Array | -9/Materials | Scanalyzed Hover Unit | -9/Materials | Scanalyzed Adv. Beam Rifle | -8/Materials | Scanalyzed Shock Bomb Launcher | -8/Materials | Scanalyzed Targeting Computer | -8/Materials | Scanalyzed Spread Laser | -8/Materials | Scanalyzed Heat Sink | -8/Materials | Scanalyzed Particle Charger | -8/Materials | Scanalyzed Imp. Targeting Computer | -8/Materials | Scanalyzed Enh. Autogun | -8/Materials | Scanalyzed Flak Gun | -7/Factory | Hacked Recoil Nullifier | -7/Factory | Hacked Robot Schematics ------------------ None Fabricated ------------ Nothing Alien Tech Used ----------------- None Achievements -------------- 5k Club Crack Shot Dynamic Key First Step to Greatness Librarian Loot Pinata Made in Tau Ceti IV Oh No You Don't! One Hack Too Far Oops Part-time Mechanic Please Form A Line Quick And Dirty Remodeling Risk Taker Safety First Serviceable Loadout Significant Disruption Storm Trooper System Compromised Troublemaker Uninvited Guest Universal Adapter Unlikely Earthworm Use The Force Challenges ------------ None Game ------ Seed MobileLargeMultitool Manual? 0 Play Time 02:07:51 Cumulative 2.0 hours Start 2024.04.08 @ 13:45:27 End 2024.04.08 @ 16:04:23 Sessions 1 Manual Loads 0 Difficulty Explorer Special Mode None Game No. 1 Rogue 0 Adventurer 0 Explorer 1 Win Type - Total 0 Types 0/0/0/0/0/0/0/0/0 Lore% 1 Gallery% 8 Achievement% 9 Wizard Run 0 Options --------- Layout 1 ASCII 0 Keyboard 0 Movement Mouse Keybinds 0 Fullscreen 2 Font 48/Smallcaps Map View 50x35 Zoom Use 0% Tactical HUD 1 Map Filters NONE Filters NONE Steam 1 RUN: 6e3ee676-06e2-4ce6-a6d4-0b73015f6df6